bitfinex-derivatives/quotes_BNBF0:USTF0_20250309
["timestamp","ask_amount","ask_price","bid_price","bid_amount"]
[1741530586123,1.49,569.08,568.0,0.2973382]
[1741530586322,1.49,569.08,568.02,0.35210027]
[1741530586524,1.49,569.08,568.03,0.2973382]
[1741530587024,1.49,569.08,568.05,0.35208168]
[1741530587218,1.49,569.08,568.06,0.2973382]
[1741530588018,1.49,569.08,568.08,0.35206308]
[1741530588221,1.49,569.08,568.09,0.29734742]
[1741530588423,1.49,569.08,568.11,0.35204449]
[1741530588724,1.49,569.08,568.12,0.29734742]
[1741530588922,2.144,569.08,568.14,0.3520259]
[1741530589122,2.929,569.08,568.15,0.29734742]
[1741530589318,2.929,569.08,568.17,0.35200732]
[1741530589518,2.929,569.08,568.18,0.29734742]
[1741530589722,2.929,569.08,568.17,0.35200732]
[1741530589723,2.929,569.08,568.2,0.35198873]
[1741530589924,2.929,569.08,568.21,0.29734742]
[1741530590225,2.929,569.08,568.23,0.35197015]
[1741530590523,2.929,569.08,568.24,0.29734742]
[1741530590719,2.929,569.08,568.25,0.35195776]
[1741530590917,2.929,569.08,568.26,0.29734742]
[1741530591121,2.929,569.08,568.27,0.35194537]
[1741530591324,2.929,569.08,568.28,0.29734742]
[1741530591624,2.929,569.08,568.29,0.35193299]
[1741530591821,2.929,569.08,568.3,0.29734742]
[1741530592018,2.929,569.08,568.31,0.3519206]
[1741530592223,2.929,569.08,568.32,0.29734742]
[1741530592422,2.929,569.08,568.33,0.35190822]
[1741530592618,2.929,569.08,568.34,0.29734742]
[1741530592819,2.929,569.08,568.35,0.35189583]
[1741530594626,2.929,569.08,568.36,0.29736724]
[1741530594828,2.929,569.08,568.37,0.35188345]
[1741530595028,2.929,569.08,568.38,0.29736724]
[1741530595226,2.929,569.08,568.39,0.35187107]
[1741530595425,2.929,569.08,568.4,0.29736636]
[1741530595621,2.929,569.08,568.41,0.35185869]
[1741530596221,3.481,569.08,568.42,0.29737172]
[1741530596929,3.481,569.08,568.43,0.29738269]
[1741530597129,3.481,569.08,568.44,0.29738269]
[1741530597329,3.481,569.08,568.45,0.29738269]
[1741530597530,3.481,569.08,568.42,0.29738269]
[1741530597824,3.481,569.08,568.43,0.29738269]
[1741530598030,3.481,569.08,568.42,0.29738269]
[1741530598229,3.481,569.08,568.43,0.29738269]
[1741530598430,3.481,569.08,568.42,0.29738269]
[1741530598631,3.481,569.08,568.43,0.29738269]
[1741530598832,3.481,569.08,568.44,0.29738269]
[1741530599025,3.481,569.08,568.45,0.29737652]
[1741530599224,3.481,569.08,568.42,0.29737652]
[1741530599429,3.481,569.08,568.43,0.29737652]
[1741530599631,3.481,569.08,568.42,0.29737652]
[1741530599830,3.481,569.08,568.43,0.29737652]
[1741530600030,3.481,569.08,568.42,0.29737652]
[1741530600234,3.983,569.08,568.43,0.29737652]
[1741530600436,3.983,569.08,568.42,0.29737652]
[1741530600631,3.983,569.08,568.44,0.29737652]
[1741530600838,0.91306402,569.07,568.45,0.29737652]
[1741530601149,0.91306402,569.07,568.46,0.29737652]
[1741530601437,0.91306402,569.07,568.47,0.29737652]
[1741530601732,0.91306402,569.07,568.41,0.35185869]
[1741530601936,0.30598114,569.06,568.42,0.29746201]
[1741530602336,0.91306402,569.07,568.42,0.29746201]
[1741530602536,0.91306402,569.07,568.41,0.35185869]
[1741530603136,0.30608206,569.06,568.41,0.35185869]
[1741530604038,0.30608206,569.06,568.42,0.29740472]
[1741530604434,1.543,569.05,568.42,0.29740472]
[1741530605338,0.562,569.04,568.42,0.29740472]
[1741530607144,0.509,569.03,568.42,0.29740472]
[1741530608341,0.507,569.02,568.42,0.29740472]
[1741530608938,0.734,569.01,568.42,0.29740472]
[1741530610353,0.734,569.01,568.41,0.35185869]
[1741530610651,0.734,569.01,568.42,0.29730374]
[1741530611052,0.734,569.01,568.43,0.35184631]
[1741530611254,0.734,569.01,568.44,0.29726758]
[1741530612054,0.734,569.01,568.43,0.35184631]
[1741530612247,0.734,569.01,568.44,0.29727659]
[1741530613154,0.734,569.01,568.43,0.35184631]
[1741530613353,0.734,569.01,568.44,0.29727251]
[1741530613759,0.745,569.0,568.44,0.29727251]
[1741530613949,0.745,569.0,568.45,0.35183393]
[1741530614150,0.745,569.0,568.46,0.29727251]
[1741530614356,0.745,569.0,568.47,0.35182155]
[1741530614555,0.745,569.0,568.48,0.29727251]
[1741530615062,0.745,569.0,568.49,0.35180917]
[1741530615261,0.745,569.0,568.5,0.29727251]
[1741530615451,0.564,568.99,568.51,0.3517968]
[1741530615650,0.564,568.99,568.52,0.29727251]
[1741530615854,0.564,568.99,568.53,0.35178442]
[1741530616057,0.564,568.99,568.54,0.29727251]
[1741530616662,0.564,568.99,568.55,0.29724972]
[1741530616855,0.564,568.99,568.54,0.29724972]
[1741530617056,0.564,568.99,568.55,0.29724972]
[1741530617258,0.564,568.99,568.54,0.29724972]
[1741530617462,0.564,568.99,568.56,0.29724972]
[1741530617756,0.564,568.99,568.57,0.29724972]
[1741530617957,0.564,568.99,568.55,0.35177205]
[1741530617958,0.564,568.99,568.56,0.29724972]
[1741530618158,0.564,568.99,568.57,0.29724972]
[1741530618355,0.564,568.99,568.56,0.29724972]
[1741530618559,0.564,568.99,568.57,0.29724972]
[1741530618754,0.564,568.99,568.56,0.29724972]
[1741530618967,0.564,568.99,568.57,0.29724972]
[1741530619260,0.564,568.99,568.58,0.29724972]
[1741530619464,0.564,568.99,568.56,0.29724972]
[1741530619661,0.564,568.99,568.57,0.29724972]
[1741530619853,0.564,568.99,568.58,0.29724972]
[1741530620059,0.564,568.99,568.56,0.29724972]
[1741530620264,0.564,568.99,568.57,0.29724972]
[1741530620457,0.564,568.99,568.56,0.29724972]
[1741530620660,0.564,568.99,568.57,0.29724972]
[1741530620962,0.564,568.99,568.58,0.29724972]
[1741530621261,0.564,568.99,568.59,0.29724972]
[1741530621462,0.564,568.99,568.55,0.35177205]
[1741530621463,0.564,568.99,568.56,0.29724972]
[1741530621662,0.564,568.99,568.6,0.29724972]
[1741530621969,0.564,568.99,568.55,0.35177205]
[1741530622266,0.564,568.99,568.56,0.29726123]
[1741530622760,0.564,568.99,568.55,0.35177205]
[1741530623472,0.564,568.99,568.56,0.29730267]
[1741530625565,0.803,568.98,568.56,0.29730267]
[1741530626372,0.634,568.97,568.56,0.29730267]
[1741530627269,0.634,568.97,568.57,0.35175967]
[1741530627671,0.634,568.97,568.58,0.29730267]
[1741530629366,0.634,568.97,568.57,0.35175967]
[1741530629566,0.634,568.97,568.58,0.2972621]
[1741530629867,0.634,568.97,568.58,0.64901559]
[1741530630074,0.634,568.97,568.59,0.2972621]
[1741530630873,0.634,568.97,568.6,0.35174111]
[1741530631064,0.634,568.97,568.61,0.2972621]
[1741530632976,0.634,568.97,568.62,0.29717106]
[1741530633177,0.634,568.97,568.61,0.29717106]
[1741530633476,0.634,568.97,568.62,0.6488998]
[1741530633769,0.634,568.97,568.63,0.29717106]
[1741530633969,0.634,568.97,568.63,0.64889362]
[1741530634176,0.634,568.97,568.64,0.35171637]
[1741530634376,0.634,568.97,568.65,0.29717106]
[1741530634578,0.634,568.97,568.66,0.351704]
[1741530634779,0.634,568.97,568.67,0.29717106]
[1741530635276,0.634,568.97,568.68,0.35169163]
[1741530635476,0.634,568.97,568.69,0.29717106]
[1741530635878,0.634,568.97,568.7,0.35167926]
[1741530636074,0.634,568.97,568.71,0.29717106]
[1741530636377,0.634,568.97,568.72,0.3516669]
[1741530636677,0.634,568.97,568.73,0.29715402]
[1741530636982,0.634,568.97,568.74,0.35165453]
[1741530637277,0.634,568.97,568.75,0.29715402]
[1741530637481,0.634,568.97,568.76,0.35164216]
[1741530637876,0.634,568.97,568.77,0.29715402]
[1741530638071,0.634,568.97,568.78,0.3516298]
[1741530638571,0.634,568.97,568.79,0.29715402]
[1741530639276,0.634,568.97,568.8,0.35161744]
[1741530639476,0.634,568.97,568.81,0.29714768]
[1741530640273,0.634,568.97,568.82,0.29715774]
[1741530640471,0.634,568.97,568.81,0.29715774]
[1741530640679,0.634,568.97,568.82,0.29715774]
[1741530640876,0.634,568.97,568.81,0.29715774]
[1741530641077,0.634,568.97,568.83,0.29715774]
[1741530641376,0.634,568.97,568.84,0.29715774]
[1741530641877,0.634,568.97,568.85,0.29715774]
[1741530642085,0.634,568.97,568.81,0.29715774]
[1741530642280,0.634,568.97,568.82,0.29715774]
[1741530642582,0.803,568.98,568.83,0.29715774]
[1741530642773,0.803,568.98,568.81,0.29715774]
[1741530642973,0.803,568.98,568.82,0.29715774]
[1741530643179,0.803,568.98,568.83,0.29715774]
[1741530643374,0.803,568.98,568.81,0.29715774]
[1741530643572,0.803,568.98,568.82,0.29715774]
[1741530643973,0.803,568.98,568.83,0.29715774]
[1741530644380,0.803,568.98,568.81,0.29715774]
[1741530644579,0.803,568.98,568.82,0.29715774]
[1741530644779,0.803,568.98,568.81,0.29715774]
[1741530644974,0.803,568.98,568.82,0.29715774]
[1741530645178,0.803,568.98,568.81,0.29715774]
[1741530645480,0.803,568.98,568.82,0.29715774]
[1741530645675,0.803,568.98,568.83,0.297142]
[1741530645873,0.803,568.98,568.81,0.297142]
[1741530646074,0.803,568.98,568.82,0.297142]
[1741530646279,0.803,568.98,568.83,0.35159889]
[1741530646475,0.803,568.98,568.84,0.297142]
[1741530646785,0.803,568.98,568.85,0.35158653]
[1741530646980,0.803,568.98,568.86,0.297142]
[1741530649178,0.803,568.98,568.85,0.35158653]
[1741530649377,0.803,568.98,568.86,0.29715129]
[1741530650084,0.803,568.98,568.87,0.29714741]
[1741530650385,0.803,568.98,568.88,0.29714741]
[1741530650683,0.803,568.98,568.89,0.29714741]
[1741530650881,0.803,568.98,568.86,0.29714741]
[1741530651685,0.687,568.99,568.86,0.29714741]
[1741530653183,0.687,568.99,568.85,0.35158653]
[1741530662293,0.687,568.99,568.86,0.29720213]
[1741530665691,0.687,568.99,568.85,0.35158653]
[1741530668597,0.745,569.23,568.85,0.35158653]
[1741530669098,0.745,569.23,568.86,0.29713464]
[1741530670298,0.745,569.23,568.85,0.35158653]
[1741530670501,0.745,569.23,568.87,0.29717388]
[1741530670701,0.745,569.23,568.88,0.29717978]
[1741530670900,0.745,569.23,568.89,0.29717978]
[1741530671205,0.745,569.23,568.9,0.29717978]
[1741530671398,0.745,569.23,568.86,0.29717978]
[1741530671704,0.745,569.23,568.87,0.29717978]
[1741530671903,0.745,569.23,568.85,0.35158653]
[1741530671904,0.745,569.23,568.86,0.29717978]
[1741530672113,0.745,569.23,568.87,0.29717978]
[1741530672503,0.745,569.23,568.88,0.29717978]
[1741530672700,0.745,569.23,568.86,0.29717978]
[1741530674604,0.745,569.23,568.85,0.35158653]
[1741530674904,1.527,569.26,568.85,0.35158653]
[1741530678107,2.049,569.26,568.85,0.35158653]
[1741530679311,2.612,569.26,568.85,0.35158653]
[1741530679811,2.612,569.26,568.86,0.29719401]
[1741530682911,1.865,569.26,568.85,0.35158653]
[1741530686113,2.584,569.26,568.85,0.35158653]
[1741530686305,2.584,569.26,568.86,0.29721556]
[1741530686507,3.159,569.26,568.86,0.29721556]
[1741530686813,3.159,569.26,568.85,0.35158653]
[1741530687013,3.159,569.26,568.86,0.29719754]
[1741530688716,3.159,569.26,568.87,0.29715066]
[1741530689014,3.159,569.26,568.88,0.29715066]
[1741530689410,3.159,569.26,568.85,0.35158653]
[1741530689411,3.159,569.26,568.89,0.29715066]
[1741530689611,3.159,569.26,568.86,0.29715066]
[1741530689815,3.159,569.26,568.87,0.29715066]
[1741530690014,3.159,569.26,568.86,0.29715066]
[1741530690510,3.159,569.26,568.85,0.35158653]
[1741530690712,3.159,569.26,568.86,0.29712764]
[1741530691211,3.159,569.26,568.85,0.35158653]
[1741530691410,3.159,569.26,568.86,0.29706343]
[1741530692013,3.159,569.26,568.87,0.35157417]
[1741530692324,3.159,569.26,568.88,0.29706343]
[1741530692550,3.159,569.26,568.89,0.35156181]
[1741530692729,3.159,569.26,568.9,0.29706343]
[1741530692934,3.159,569.26,568.91,0.35154945]
[1741530693133,3.159,569.26,568.92,0.29706343]
[1741530694037,3.159,569.26,568.93,0.2970828]
[1741530694246,2.637,569.26,568.94,0.2970828]
[1741530694456,2.637,569.26,568.95,0.2970828]
[1741530694655,2.637,569.26,568.92,0.2970828]
[1741530694955,2.637,569.26,568.93,0.2970828]
[1741530695157,2.637,569.26,568.92,0.2970828]
[1741530695353,2.637,569.26,568.94,0.2970828]
[1741530695554,2.637,569.26,568.95,0.2970828]
[1741530695753,2.637,569.26,568.92,0.2970828]
[1741530695955,2.637,569.26,568.96,0.2970828]
[1741530696152,2.637,569.26,568.97,0.2970828]
[1741530696357,2.637,569.26,568.98,0.2970828]
[1741530696550,2.637,569.26,568.91,0.35154945]
[1741530696752,2.637,569.26,568.92,0.29711553]
[1741530698153,1.918,569.26,568.92,0.29711553]
[1741530703055,1.918,569.26,568.91,0.35154945]
[1741530703654,1.343,569.26,568.91,0.35154945]
[1741530709345,0.78,569.26,568.91,0.35154945]
[1741530710951,0.78,569.26,568.1,1.30648228]
[1741530710952,0.78,569.26,568.09,1.30648228]
[1741530711142,0.78,569.26,568.1,0.29725316]
[1741530711443,0.78,569.26,568.12,0.3520383]
[1741530711638,0.78,569.26,568.13,0.29725316]
[1741530712031,0.78,569.26,568.12,0.3520383]
[1741530712337,0.78,569.26,568.13,0.29724838]
[1741530712636,0.706,569.25,568.14,0.29724838]
[1741530712830,0.706,569.25,568.15,0.29724838]
[1741530713032,0.706,569.25,568.13,0.29724838]
[1741530713328,0.706,569.25,568.14,0.29724838]
[1741530713534,0.706,569.25,568.16,0.35201351]
[1741530713734,0.706,569.25,568.17,0.29724838]
[1741530713935,0.706,569.25,568.19,0.35199493]
[1741530714130,0.706,569.25,568.2,0.29730544]
[1741530714335,0.706,569.25,568.22,0.35197634]
[1741530714531,0.706,569.25,568.23,0.29730544]
[1741530714729,0.706,569.25,568.25,0.35195776]
[1741530714929,0.706,569.25,568.26,0.29730544]
[1741530716836,0.305926,569.24,568.26,0.29730544]
[1741530717034,1.099926,569.24,568.26,0.29730544]
[1741530717635,1.099926,569.24,568.27,0.35194537]
[1741530717835,1.099926,569.24,568.28,0.29730544]
[1741530718330,1.099926,569.24,568.29,0.35193299]
[1741530718534,1.099926,569.24,568.3,0.29730544]
[1741530719437,0.794,569.24,568.3,0.29730544]
[1741530719831,0.30592331,569.23,568.31,0.3519206]
[1741530720137,0.30592331,569.23,568.32,0.29730544]
[1741530720538,0.30592331,569.23,568.33,0.35190822]
[1741530720837,0.601,569.22,568.34,0.29730544]
[1741530721037,0.601,569.22,568.35,0.35189583]
[1741530721234,0.601,569.22,568.36,0.29730544]
[1741530722136,0.601,569.22,568.37,0.35188345]
[1741530722437,0.601,569.22,568.38,0.29730544]
[1741530722739,0.601,569.22,568.39,0.35187107]
[1741530722937,0.90690986,569.22,568.4,0.29730544]
[1741530723238,0.90690986,569.22,568.41,0.35185869]
[1741530723432,0.90690986,569.22,568.42,0.29730544]
[1741530723635,0.90690986,569.22,568.42,0.64915794]
[1741530723836,0.90690986,569.22,568.43,0.29730544]
[1741530724232,0.627,569.21,568.44,0.2973455]
[1741530724436,0.627,569.21,568.42,0.3518525]
[1741530724437,0.627,569.21,568.43,0.2973455]
[1741530724741,0.627,569.21,568.44,0.2973455]
[1741530724940,0.627,569.21,568.45,0.2973455]
[1741530725134,0.627,569.21,568.43,0.2973455]
[1741530725340,0.627,569.21,568.44,0.2973455]
[1741530725636,0.627,569.21,568.45,0.2973455]
[1741530725941,0.627,569.21,568.42,0.3518525]
[1741530725942,0.627,569.21,568.46,0.2973455]
[1741530726138,0.627,569.21,568.42,0.3518525]
[1741530726139,0.627,569.21,568.47,0.2973455]
[1741530726335,0.627,569.21,568.43,0.2973455]
[1741530726536,0.627,569.21,568.44,0.2973455]
[1741530726939,0.627,569.21,568.45,0.2973455]
[1741530727243,0.627,569.21,568.46,0.2973455]
[1741530727442,0.627,569.21,568.47,0.2973455]
[1741530727744,0.627,569.21,568.48,0.2973455]
[1741530727943,0.627,569.21,568.49,0.2973455]
[1741530728144,0.627,569.21,568.5,0.2973455]
[1741530728541,0.627,569.21,568.51,0.2973455]
[1741530728739,0.627,569.21,568.52,0.2973455]
[1741530729038,0.627,569.21,568.53,0.2973455]
[1741530729241,0.627,569.21,568.43,0.2973455]
[1741530729439,0.627,569.21,568.44,0.2973455]
[1741530729745,0.627,569.21,568.45,0.2973455]
[1741530730043,0.627,569.21,568.42,0.3518525]
[1741530730044,0.627,569.21,568.46,0.2973455]
[1741530730243,0.627,569.21,568.47,0.2973455]
[1741530730539,0.627,569.21,568.48,0.2973455]
[1741530730736,0.627,569.21,568.49,0.29711365]
[1741530731044,0.627,569.21,568.5,0.29711365]
[1741530731243,0.627,569.21,568.51,0.29711365]
[1741530731543,0.627,569.21,568.52,0.29711365]
[1741530731743,0.58,569.2,568.52,0.29711365]
[1741530731941,0.58,569.2,568.53,0.29711365]
[1741530732137,1.228,569.2,568.53,0.29711365]
[1741530732439,1.228,569.2,568.54,0.29711365]
[1741530732642,1.228,569.2,568.43,0.29711365]
[1741530732842,1.228,569.2,568.44,0.29711365]
[1741530733043,1.228,569.2,568.45,0.29711365]
[1741530733438,1.228,569.2,568.43,0.29711365]
[1741530733744,1.228,569.2,568.44,0.64895377]
[1741530733944,1.228,569.2,568.45,0.29711365]
[1741530734342,1.228,569.2,568.46,0.64894139]
[1741530734644,1.228,569.2,568.47,0.29711365]
[1741530734838,1.228,569.2,568.48,0.64892901]
[1741530735043,1.228,569.2,568.49,0.35180917]
[1741530735244,1.228,569.2,568.5,0.29706509]
[1741530735444,1.228,569.2,568.51,0.64886189]
[1741530735642,1.228,569.2,568.52,0.6488557]
[1741530735843,1.228,569.2,568.53,0.64884951]
[1741530736044,1.228,569.2,568.54,0.64884332]
[1741530736246,1.228,569.2,568.55,0.29706509]
[1741530736441,1.228,569.2,568.54,0.35177823]
[1741530736442,1.228,569.2,568.56,0.64883095]
[1741530736644,1.228,569.2,568.57,0.64882476]
[1741530736840,1.228,569.2,568.58,0.29705241]
[1741530737042,1.228,569.2,568.59,0.29705241]
[1741530737245,1.228,569.2,568.6,0.29705241]
[1741530737439,1.228,569.2,568.61,0.29705241]
[1741530737644,1.228,569.2,568.62,0.29705241]
[1741530737846,1.228,569.2,568.63,0.64877497]
[1741530738049,1.228,569.2,568.64,0.29705241]
[1741530738050,1.753,569.2,568.64,0.29705241]
[1741530738444,1.753,569.2,568.65,0.29705241]
[1741530738648,1.753,569.2,568.66,0.29705241]
[1741530738842,3.135,569.2,568.67,0.29699969]
[1741530739046,3.135,569.2,568.68,0.29699969]
[1741530739242,3.135,569.2,568.69,0.29699969]
[1741530739443,3.135,569.2,568.7,0.29699969]
[1741530739647,3.135,569.2,568.71,0.29699969]
[1741530739849,3.135,569.2,568.72,0.29699969]
[1741530740148,3.135,569.2,568.73,0.6486604]
[1741530740353,3.135,569.2,568.74,0.64865422]
[1741530740544,3.135,569.2,568.75,0.64864804]
[1741530740748,3.665,569.2,568.76,0.64864185]
[1741530740949,3.665,569.2,568.48,0.30574726]
[1741530740950,4.339,569.2,568.77,0.64863567]
[1741530741249,4.339,569.2,568.78,0.64862949]
[1741530741448,4.339,569.2,568.79,0.29699969]
[1741530741644,4.339,569.2,568.79,0.64862331]
[1741530741845,4.339,569.2,568.8,0.29699969]
[1741530742049,4.339,569.2,568.81,0.35161125]
[1741530742252,4.339,569.2,568.82,0.29699969]
[1741530742952,4.339,569.2,568.81,0.35161125]
[1741530743151,4.339,569.2,568.83,0.35159889]
[1741530743449,4.339,569.2,568.84,0.29710794]
[1741530743645,4.339,569.2,568.84,0.64870065]
[1741530743851,4.339,569.2,568.85,0.29710794]
[1741530744546,4.339,569.2,568.84,0.35159271]
[1741530744747,4.339,569.2,568.85,0.29710408]
[1741530745852,4.339,569.2,568.84,0.35159271]
[1741530746050,4.339,569.2,568.85,0.29715637]
[1741530746745,3.759,569.2,568.85,0.29715637]
[1741530749858,3.116,569.2,568.84,0.35159271]
[1741530751056,2.591,569.2,567.94,1.30648228]
[1741530751357,2.591,569.2,567.96,0.35213747]
[1741530751657,2.591,569.2,567.97,0.29725633]
[1741530751856,2.591,569.2,567.98,0.29725633]
[1741530752056,2.591,569.2,568.0,0.35211267]
[1741530752257,2.591,569.2,568.01,0.29725633]
[1741530752458,2.591,569.2,568.03,0.35209407]
[1741530752659,2.591,569.2,568.04,0.29725633]
[1741530752955,2.591,569.2,568.06,0.35207548]
[1741530752956,3.415,569.2,568.06,0.35207548]
[1741530753256,3.415,569.2,568.07,0.29725633]
[1741530753458,3.415,569.2,568.08,0.29725633]
[1741530753657,3.415,569.2,568.09,0.29725633]
[1741530753857,3.415,569.2,568.06,0.35207548]
[1741530753858,3.415,569.2,568.1,0.29725633]
[1741530754053,3.415,569.2,568.11,0.29725633]
[1741530754256,4.212,569.2,568.12,0.29725633]
[1741530754458,4.212,569.2,568.13,0.29725633]
[1741530754854,4.212,569.2,568.14,0.29725633]
[1741530755058,4.212,569.2,568.15,0.29725633]
[1741530755361,4.212,569.2,568.16,0.29725633]
[1741530755552,4.212,569.2,568.17,0.29725633]
[1741530755757,4.212,569.2,568.18,0.29725633]
[1741530755956,4.212,569.2,568.19,0.29725633]
[1741530756159,4.212,569.2,568.2,0.29725633]
[1741530756359,4.212,569.2,568.13,1.30648228]
[1741530756360,4.212,569.2,568.21,0.29725633]
[1741530756553,4.212,569.2,568.22,0.29725633]
[1741530756758,4.212,569.2,568.23,0.29725633]
[1741530757057,4.212,569.2,568.13,1.30648228]
[1741530757262,4.212,569.2,568.14,0.29712664]
[1741530757461,4.212,569.2,568.15,0.29712664]
[1741530757758,4.212,569.2,568.16,0.29712664]
[1741530757958,4.212,569.2,568.17,0.29712664]
[1741530758357,4.212,569.2,568.18,0.29712664]
[1741530758554,4.212,569.2,568.19,0.29712664]
[1741530758757,4.212,569.2,568.2,0.29712664]
[1741530758952,4.212,569.2,568.15,1.30648228]
[1741530758953,4.212,569.2,568.21,0.29712664]
[1741530759153,4.212,569.2,568.22,0.29712664]
[1741530759358,4.212,569.2,568.23,0.29712664]
[1741530759760,4.212,569.2,568.24,0.29712664]
[1741530759959,4.212,569.2,568.25,0.29712664]
[1741530760161,4.212,569.2,568.26,0.29712664]
[1741530760361,4.212,569.2,568.27,0.29712664]
[1741530760561,4.212,569.2,568.28,0.29712664]
[1741530760761,4.212,569.2,568.23,1.30648228]
[1741530760762,4.212,569.2,568.29,0.29712664]
[1741530761065,4.212,569.2,568.3,0.29712664]
[1741530761359,4.212,569.2,568.31,0.29712664]
[1741530761567,4.212,569.2,568.32,0.29712664]
[1741530761761,4.734,569.2,568.33,0.29712664]
[1741530761958,4.734,569.2,568.34,0.29712664]
[1741530762160,4.734,569.2,568.23,1.30648228]
[1741530762161,4.734,569.2,568.35,0.29712664]
[1741530762360,4.734,569.2,568.36,0.29712664]
[1741530762562,4.734,569.2,568.37,0.29712664]
[1741530762767,4.734,569.2,568.38,0.29712664]
[1741530762964,4.734,569.2,568.39,0.29712664]
[1741530763261,4.734,569.2,568.4,0.29712664]
[1741530763464,4.734,569.2,568.41,0.29712664]
[1741530763660,4.734,569.2,568.42,0.29712664]
[1741530763860,4.734,569.2,568.43,0.29709065]
[1741530764057,4.734,569.2,568.44,0.29709065]
[1741530764258,4.734,569.2,568.45,0.29709065]
[1741530764564,4.734,569.2,568.46,0.29709065]
[1741530764766,4.734,569.2,568.47,0.29709065]
[1741530764964,4.734,569.2,568.48,0.64890601]
[1741530765163,5.553,569.2,568.49,0.29709065]
[1741530765464,5.553,569.2,568.5,0.29709065]
[1741530765764,5.553,569.2,568.51,0.29709065]
[1741530765965,5.553,569.2,568.52,0.29709065]
[1741530766160,5.553,569.2,568.53,0.29709065]
[1741530766367,5.553,569.2,568.54,0.64886888]
[1741530766564,5.553,569.2,568.55,0.29709065]
[1741530766765,5.553,569.2,568.56,0.64885651]
[1741530767066,5.553,569.2,568.57,0.29709065]
[1741530767263,5.553,569.2,568.58,0.35175349]
[1741530767661,5.553,569.2,568.59,0.29714966]
[1741530767867,5.553,569.2,568.6,0.35174111]
[1741530768166,5.553,569.2,568.61,0.29714966]
[1741530768667,5.553,569.2,568.62,0.35172874]
[1741530768966,5.553,569.2,568.63,0.29714966]
[1741530769166,5.553,569.2,568.64,0.35171637]
[1741530769366,5.553,569.2,568.65,0.29712202]
[1741530769562,5.553,569.2,568.66,0.351704]
[1741530769764,5.553,569.2,568.67,0.29712202]
[1741530769968,5.553,569.2,568.68,0.35169163]
[1741530770467,5.553,569.2,568.69,0.29712202]
[1741530770667,5.553,569.2,568.7,0.35167926]
[1741530770868,5.553,569.2,568.71,0.29712202]
[1741530771069,5.553,569.2,568.72,0.3516669]
[1741530771268,5.553,569.2,568.73,0.29712202]
[1741530771770,5.553,569.2,568.74,0.35165453]
[1741530771969,5.553,569.2,568.75,0.29712202]
[1741530772170,5.553,569.2,568.76,0.35164216]
[1741530772471,5.553,569.2,568.77,0.29712202]
[1741530772770,5.553,569.2,568.78,0.3516298]
[1741530773270,5.553,569.2,568.79,0.29711042]
[1741530773472,5.553,569.2,568.8,0.35161744]
[1741530773770,2.786,569.2,568.81,0.29711042]
[1741530773969,2.786,569.2,568.82,0.35160507]
[1741530774171,2.786,569.2,568.83,0.29711042]
[1741530774471,2.786,569.2,568.83,0.64870931]
[1741530774669,2.786,569.2,568.84,0.29711042]
[1741530775167,2.138,569.2,568.84,0.29711042]
[1741530775371,1.341,569.2,568.84,0.29711042]
[1741530776671,1.341,569.2,568.83,0.35159889]
[1741530776872,1.341,569.2,568.84,0.29712659]
[1741530782177,1.341,569.2,568.83,0.35159889]
[1741530786072,1.341,569.2,568.84,0.29724451]
[1741530787881,0.819,569.2,568.84,0.29724451]
[1741530789886,0.819,569.2,568.83,0.35159889]
[1741530790282,0.819,569.2,568.84,0.29716868]